[Event "*** MasterClass Titled Tuesday Blitz"]
[Site "Chess.com"]
[Date "2017.08.01"]
[Round "4"]
[White "Spartakus1975"]
[Black "Malev212"]
[Result "1-0"]
[WhiteElo "2548"]
[BlackElo "2484"]
[TimeControl "180+2"]
[EndTime "13:52:46 PDT"]
[Termination "Spartakus1975 won by checkmate"]

1. e3 {[%clk 0:02:51]} 1... g6 {[%clk 0:02:59.3]} 2. e4 {[%clk 0:02:52.9]} 2...
Bg7 {[%clk 0:03:00.4]} 3. d4 {[%clk 0:02:53]} 3... c6 {[%clk 0:03:01.1]} 4. c3
{[%clk 0:02:51.1]} 4... d5 {[%clk 0:02:58.6]} 5. Nd2 {[%clk 0:02:51.7]} 5... Nh6
{[%clk 0:02:57.2]} 6. Ngf3 {[%clk 0:02:47.7]} 6... O-O {[%clk 0:02:57.7]} 7. Bd3
{[%clk 0:02:46.8]} 7... f6 {[%clk 0:02:58.1]} 8. O-O {[%clk 0:02:46.1]} 8... Nf7
{[%clk 0:02:58.2]} 9. Re1 {[%clk 0:02:46.5]} 9... e5 {[%clk 0:02:58.6]} 10. h3
{[%clk 0:02:42.7]} 10... Nd7 {[%clk 0:02:56.8]} 11. dxe5 {[%clk 0:02:38.9]}
11... fxe5 {[%clk 0:02:56]} 12. b4 {[%clk 0:02:30.9]} 12... a5 {[%clk
0:02:50.8]} 13. Bb2 {[%clk 0:02:25.6]} 13... axb4 {[%clk 0:02:42.8]} 14. cxb4
{[%clk 0:02:25.8]} 14... d4 {[%clk 0:02:38.2]} 15. a4 {[%clk 0:02:25.4]} 15...
Nf6 {[%clk 0:02:23.9]} 16. Nc4 {[%clk 0:02:00.9]} 16... Nh5 {[%clk 0:02:22.1]}
17. Bc1 {[%clk 0:02:01.8]} 17... Be6 {[%clk 0:02:21]} 18. b5 {[%clk 0:01:56.9]}
18... cxb5 {[%clk 0:02:15.6]} 19. Nb2 {[%clk 0:01:39.3]} 19... b4 {[%clk
0:01:55.6]} 20. Bc4 {[%clk 0:01:35.2]} 20... Bxc4 {[%clk 0:01:48.4]} 21. Nxc4
{[%clk 0:01:35.4]} 21... b5 {[%clk 0:01:49.9]} 22. Nb2 {[%clk 0:01:34.8]} 22...
Nd6 {[%clk 0:01:30.1]} 23. Nd3 {[%clk 0:01:28.4]} 23... bxa4 {[%clk 0:01:13.9]}
24. Rxa4 {[%clk 0:01:28.1]} 24... Rxa4 {[%clk 0:01:11.7]} 25. Qxa4 {[%clk
0:01:28.7]} 25... Rxf3 {[%clk 0:00:53.9]} 26. gxf3 {[%clk 0:01:28.6]} 26... Nf7
{[%clk 0:00:49.3]} 27. Qxb4 {[%clk 0:01:22.7]} 27... Bf8 {[%clk 0:00:46.4]} 28.
Qb3 {[%clk 0:01:12.8]} 28... Qf6 {[%clk 0:00:45.4]} 29. Kg2 {[%clk 0:01:07.5]}
29... Kg7 {[%clk 0:00:46.1]} 30. Bd2 {[%clk 0:01:02.1]} 30... Bd6 {[%clk
0:00:35.6]} 31. Ra1 {[%clk 0:00:56.8]} 31... Ng5 {[%clk 0:00:29.9]} 32. Ra7+
{[%clk 0:00:56.1]} 32... Kh6 {[%clk 0:00:29.6]} 33. Ne1 {[%clk 0:00:41.3]} 33...
Nf4+ {[%clk 0:00:27.7]} 34. Bxf4 {[%clk 0:00:42]} 34... Qxf4 {[%clk 0:00:28.4]}
35. Qg8 {[%clk 0:00:23.4]} 35... Bb4 {[%clk 0:00:25.9]} 36. Qg7+ {[%clk
0:00:19.3]} 36... Kh5 {[%clk 0:00:26.6]} 37. h4 {[%clk 0:00:17.2]} 37... Kxh4
{[%clk 0:00:21.4]} 38. Qxh7+ {[%clk 0:00:18.3]} 38... Nxh7 {[%clk 0:00:21.3]}
39. Rxh7+ {[%clk 0:00:17.7]} 39... Kg5 {[%clk 0:00:22.7]} 40. Nd3 {[%clk
0:00:18.3]} 40... Qd2 {[%clk 0:00:16.8]} 41. Nxe5 {[%clk 0:00:18.7]} 41... d3
{[%clk 0:00:14.1]} 42. Rf7 {[%clk 0:00:15.1]} 42... Bc5 {[%clk 0:00:12.8]} 43.
f4+ {[%clk 0:00:14.5]} 43... Kh6 {[%clk 0:00:10.8]} 44. Ng4+ {[%clk 0:00:15.5]}
44... Kh5 {[%clk 0:00:11.3]} 45. Nf6+ {[%clk 0:00:16.5]} 45... Kh6 {[%clk
0:00:11]} 46. Rh7# {[%clk 0:00:17.3]} 1-0

[Event "*** MasterClass Titled Tuesday Blitz"]
[Site "Chess.com"]
[Date "2017.08.01"]
[Round "4"]
[White "swayamsm"]
[Black "Fandorine"]
[Result "1-0"]
[WhiteElo "2461"]
[BlackElo "2640"]
[TimeControl "180+2"]
[EndTime "13:52:48 PDT"]
[Termination "swayamsm won on time"]

1. d4 {[%clk 0:03:01.9]} 1... Nf6 {[%clk 0:03:01.1]} 2. c4 {[%clk 0:03:02.7]}
2... e6 {[%clk 0:03:02.7]} 3. Nc3 {[%clk 0:03:03.3]} 3... c5 {[%clk 0:03:01]} 4.
d5 {[%clk 0:03:02.7]} 4... exd5 {[%clk 0:03:02.5]} 5. cxd5 {[%clk 0:03:04.6]}
5... d6 {[%clk 0:03:03.2]} 6. h3 {[%clk 0:02:56.2]} 6... g6 {[%clk 0:03:04.4]}
7. Bf4 {[%clk 0:02:57.5]} 7... Bg7 {[%clk 0:03:05.4]} 8. e3 {[%clk 0:02:59]}
8... O-O {[%clk 0:03:05.2]} 9. Nf3 {[%clk 0:02:59.4]} 9... Na6 {[%clk
0:03:06.7]} 10. Bc4 {[%clk 0:02:54.1]} 10... Nc7 {[%clk 0:03:06.4]} 11. O-O
{[%clk 0:02:53.1]} 11... a6 {[%clk 0:03:02.9]} 12. a4 {[%clk 0:02:54]} 12... Rb8
{[%clk 0:02:52.7]} 13. a5 {[%clk 0:02:46.8]} 13... b5 {[%clk 0:02:52.2]} 14.
axb6 {[%clk 0:02:47.9]} 14... Rxb6 {[%clk 0:02:53.7]} 15. Qe2 {[%clk 0:02:35.3]}
15... Re8 {[%clk 0:02:28.5]} 16. Ra2 {[%clk 0:02:26.1]} 16... Rb4 {[%clk
0:02:17.6]} 17. Rd1 {[%clk 0:01:59.5]} 17... Ne4 {[%clk 0:01:50.4]} 18. Nxe4
{[%clk 0:01:48.1]} 18... Rxe4 {[%clk 0:01:52.3]} 19. Nd2 {[%clk 0:01:44.2]}
19... Re8 {[%clk 0:01:07.1]} 20. Nf3 {[%clk 0:01:26]} 20... h6 {[%clk
0:00:53.3]} 21. Bg3 {[%clk 0:01:24.7]} 21... Qf6 {[%clk 0:00:53]} 22. Nd2 {[%clk
0:01:08.5]} 22... Nb5 {[%clk 0:00:44.5]} 23. Qd3 {[%clk 0:00:31.3]} 23... Qe7
{[%clk 0:00:32.8]} 24. Qc2 {[%clk 0:00:17.6]} 24... h5 {[%clk 0:00:31.2]} 25.
Nf3 {[%clk 0:00:14.9]} 25... Bf5 {[%clk 0:00:24.6]} 26. Qc1 {[%clk 0:00:15.7]}
26... Be4 {[%clk 0:00:21.7]} 27. Bh4 {[%clk 0:00:16.2]} 27... Bf6 {[%clk
0:00:17.3]} 28. Bxf6 {[%clk 0:00:16.3]} 28... Qxf6 {[%clk 0:00:20.9]} 29. Nd2
{[%clk 0:00:17.6]} 29... Nc7 {[%clk 0:00:16.5]} 30. Nxe4 {[%clk 0:00:16.3]}
30... Rxe4 {[%clk 0:00:16.6]} 31. b3 {[%clk 0:00:14]} 31... Kg7 {[%clk
0:00:15.8]} 32. Qc2 {[%clk 0:00:13.1]} 32... Re8 {[%clk 0:00:12.9]} 33. Bxa6
{[%clk 0:00:14.4]} 33... Qf5 {[%clk 0:00:08.2]} 34. Qxf5 {[%clk 0:00:14]} 34...
gxf5 {[%clk 0:00:10.1]} 35. Bc4 {[%clk 0:00:14]} 35... Nb5 {[%clk 0:00:11.7]}
36. Ra6 {[%clk 0:00:12.6]} 1-0

[Event "*** MasterClass Titled Tuesday Blitz"]
[Site "Chess.com"]
[Date "2017.08.01"]
[Round "4"]
[White "Big_Fishy"]
[Black "beastfromweast"]
[Result "0-1"]
[WhiteElo "2239"]
[BlackElo "2286"]
[TimeControl "180+2"]
[EndTime "13:52:49 PDT"]
[Termination "beastfromweast won by resignation"]

1. d4 {[%clk 0:03:02]} 1... d5 {[%clk 0:02:59.7]} 2. Nc3 {[%clk 0:03:02.9]} 2...
Nf6 {[%clk 0:02:57.1]} 3. Bf4 {[%clk 0:03:03.4]} 3... c5 {[%clk 0:02:57.8]} 4.
e3 {[%clk 0:03:03.9]} 4... a6 {[%clk 0:02:54]} 5. Nf3 {[%clk 0:03:04]} 5... e6
{[%clk 0:02:54.2]} 6. Bd3 {[%clk 0:03:03.9]} 6... b5 {[%clk 0:02:54]} 7. O-O
{[%clk 0:02:55.2]} 7... Bb7 {[%clk 0:02:52.8]} 8. Re1 {[%clk 0:02:49.1]} 8...
Nbd7 {[%clk 0:02:49.1]} 9. Ne5 {[%clk 0:02:33.5]} 9... b4 {[%clk 0:02:47.6]} 10.
Na4 {[%clk 0:02:26]} 10... c4 {[%clk 0:02:43.7]} 11. Bf1 {[%clk 0:02:26.3]}
11... Nxe5 {[%clk 0:02:42.8]} 12. dxe5 {[%clk 0:02:15.7]} 12... Bc6 {[%clk
0:02:33.7]} 13. c3 {[%clk 0:02:05]} 13... Nd7 {[%clk 0:02:28.2]} 14. cxb4 {[%clk
0:01:57.4]} 14... Bxb4 {[%clk 0:02:28]} 15. Nc3 {[%clk 0:01:58.9]} 15... O-O
{[%clk 0:02:24.9]} 16. Rc1 {[%clk 0:01:47.8]} 16... Qc7 {[%clk 0:02:23.1]} 17.
e4 {[%clk 0:01:31.9]} 17... dxe4 {[%clk 0:02:02.4]} 18. Qd4 {[%clk 0:01:15.5]}
18... Bc5 {[%clk 0:01:48.9]} 19. Qxc4 {[%clk 0:01:11.9]} 19... Qb6 {[%clk
0:01:48]} 20. Rc2 {[%clk 0:01:07.8]} 20... Rac8 {[%clk 0:01:42.6]} 21. Na4
{[%clk 0:00:44.3]} 21... Bxa4 {[%clk 0:01:29.7]} 22. Qxa4 {[%clk 0:00:45.2]}
22... Rfd8 {[%clk 0:01:13.5]} 23. Qxa6 {[%clk 0:00:45.7]} 23... Ra8 {[%clk
0:00:59.8]} 24. Qxb6 {[%clk 0:00:45.2]} 24... Bxb6 {[%clk 0:01:01.7]} 25. a3
{[%clk 0:00:44.1]} 25... Nc5 {[%clk 0:01:02.2]} 26. Be3 {[%clk 0:00:41.7]} 26...
Nd3 {[%clk 0:01:02.4]} 27. Bxb6 {[%clk 0:00:42.5]} 27... Nxe1 {[%clk 0:01:03.5]}
28. Re2 {[%clk 0:00:21.4]} 28... Rd1 {[%clk 0:01:02.8]} 29. Rxe4 {[%clk
0:00:22.7]} 29... Rb8 {[%clk 0:00:59.2]} 30. Ba5 {[%clk 0:00:18.2]} 30... Nc2
{[%clk 0:00:56.3]} 31. Bc3 {[%clk 0:00:18.6]} 31... Nxa3 {[%clk 0:00:54.8]} 32.
g4 {[%clk 0:00:14.1]} 32... Nb1 {[%clk 0:00:51.7]} 33. Kg2 {[%clk 0:00:14.7]}
33... Nxc3 {[%clk 0:00:52.2]} 34. bxc3 {[%clk 0:00:15.8]} 34... g5 {[%clk
0:00:50.4]} 35. Be2 {[%clk 0:00:14.3]} 35... Rc1 {[%clk 0:00:49.7]} 36. c4
{[%clk 0:00:15.1]} 36... Rb2 {[%clk 0:00:49.6]} 37. Kf3 {[%clk 0:00:14.2]} 37...
Rc3+ {[%clk 0:00:46.7]} 38. Kg2 {[%clk 0:00:15.2]} 38... Kg7 {[%clk 0:00:46.9]}
39. Bf1 {[%clk 0:00:11.6]} 39... Kf8 {[%clk 0:00:45.5]} 40. h4 {[%clk
0:00:09.1]} 40... gxh4 {[%clk 0:00:45.1]} 41. g5 {[%clk 0:00:09]} 41... h3+
{[%clk 0:00:46.4]} 42. Kg1 {[%clk 0:00:08.8]} 42... h2+ {[%clk 0:00:45.9]} 43.
Kxh2 {[%clk 0:00:10]} 43... Rxf2+ {[%clk 0:00:46.1]} 44. Kg1 {[%clk 0:00:11.7]}
44... Rf5 {[%clk 0:00:44.4]} 45. Be2 {[%clk 0:00:09.5]} 45... Rxg5+ {[%clk
0:00:44.7]} 46. Kf2 {[%clk 0:00:11.2]} 46... Rf5+ {[%clk 0:00:42.3]} 47. Ke1
{[%clk 0:00:12.6]} 47... Rg3 {[%clk 0:00:36.1]} 48. Kd2 {[%clk 0:00:13.1]} 48...
Rgg5 {[%clk 0:00:37]} 49. c5 {[%clk 0:00:11.8]} 49... Rxe5 {[%clk 0:00:38.5]}
50. Rc4 {[%clk 0:00:12.6]} 50... Rxc5 {[%clk 0:00:39.4]} 51. Ra4 {[%clk
0:00:11.5]} 51... Ra5 {[%clk 0:00:39.5]} 52. Rb4 {[%clk 0:00:12]} 52... Rg2
{[%clk 0:00:39.1]} 53. Ke3 {[%clk 0:00:11.6]} 53... Re5+ {[%clk 0:00:38.9]} 54.
Kd4 {[%clk 0:00:12.3]} 54... Rexe2 {[%clk 0:00:38.9]} 0-1

[Event "*** MasterClass Titled Tuesday Blitz"]
[Site "Chess.com"]
[Date "2017.08.01"]
[Round "4"]
[White "Pudor"]
[Black "AdrianaNikolova"]
[Result "0-1"]
[WhiteElo "2217"]
[BlackElo "2283"]
[TimeControl "180+2"]
[EndTime "13:52:51 PDT"]
[Termination "AdrianaNikolova won by resignation"]

1. d4 {[%clk 0:03:01.9]} 1... Nf6 {[%clk 0:02:53.1]} 2. c4 {[%clk 0:03:01.5]}
2... e6 {[%clk 0:02:52.7]} 3. Nc3 {[%clk 0:03:02.4]} 3... Bb4 {[%clk 0:02:54.2]}
4. Qc2 {[%clk 0:03:03.3]} 4... c5 {[%clk 0:02:54]} 5. dxc5 {[%clk 0:03:02.7]}
5... O-O {[%clk 0:02:54.1]} 6. a3 {[%clk 0:03:00.5]} 6... Bxc5 {[%clk 0:02:54]}
7. Nf3 {[%clk 0:03:01.5]} 7... b6 {[%clk 0:02:54]} 8. b4 {[%clk 0:02:54.7]} 8...
Be7 {[%clk 0:02:53.7]} 9. Bg5 {[%clk 0:02:55.6]} 9... Bb7 {[%clk 0:02:49.2]} 10.
e3 {[%clk 0:02:55.7]} 10... Nc6 {[%clk 0:02:42.5]} 11. Rd1 {[%clk 0:02:43.9]}
11... d6 {[%clk 0:02:42.1]} 12. Be2 {[%clk 0:02:34]} 12... a6 {[%clk 0:02:42.4]}
13. O-O {[%clk 0:02:34.2]} 13... Qc7 {[%clk 0:02:42.9]} 14. Qd2 {[%clk
0:02:20.4]} 14... Rfd8 {[%clk 0:02:42]} 15. h3 {[%clk 0:02:18.5]} 15... Rac8
{[%clk 0:02:41.8]} 16. Bf4 {[%clk 0:02:19.3]} 16... Ne5 {[%clk 0:02:41.9]} 17.
Bxe5 {[%clk 0:02:02.9]} 17... dxe5 {[%clk 0:02:43.8]} 18. Qb2 {[%clk 0:02:02.8]}
18... Bf8 {[%clk 0:02:25.8]} 19. Na4 {[%clk 0:02:00.4]} 19... e4 {[%clk
0:02:12.9]} 20. Nd4 {[%clk 0:01:57.7]} 20... Nd7 {[%clk 0:02:11.2]} 21. Rc1
{[%clk 0:01:52.3]} 21... g6 {[%clk 0:02:10.1]} 22. Rfd1 {[%clk 0:01:42.2]} 22...
Bg7 {[%clk 0:02:10.2]} 23. c5 {[%clk 0:01:37.4]} 23... bxc5 {[%clk 0:02:00.2]}
24. Nxc5 {[%clk 0:01:38]} 24... Nxc5 {[%clk 0:01:59.1]} 25. Rxc5 {[%clk
0:01:39.9]} 25... Qb6 {[%clk 0:01:59.4]} 26. Rdc1 {[%clk 0:01:32.9]} 26... Rxc5
{[%clk 0:01:59.6]} 27. Rxc5 {[%clk 0:01:34.8]} 27... Bd5 {[%clk 0:02:00.2]} 28.
Qc3 {[%clk 0:01:18.8]} 28... h5 {[%clk 0:01:44.7]} 29. Ra5 {[%clk 0:01:01.3]}
29... Bb7 {[%clk 0:01:37.2]} 30. Rc5 {[%clk 0:00:51.1]} 30... Qd6 {[%clk
0:01:28.9]} 31. Rc7 {[%clk 0:00:50.9]} 31... Bd5 {[%clk 0:01:23.4]} 32. Qc5
{[%clk 0:00:46.1]} 32... Be5 {[%clk 0:01:15.8]} 33. Rc8 {[%clk 0:00:39.2]} 33...
Kh7 {[%clk 0:00:53.8]} 34. Rxd8 {[%clk 0:00:20.4]} 34... Qxd8 {[%clk 0:00:53.5]}
35. Bxa6 {[%clk 0:00:15.3]} 35... Bd6 {[%clk 0:00:46.8]} 36. Qc2 {[%clk
0:00:14.3]} 36... Qg5 {[%clk 0:00:41.1]} 37. Bf1 {[%clk 0:00:11.9]} 37... Qe5
{[%clk 0:00:37.6]} 38. g3 {[%clk 0:00:12.8]} 38... h4 {[%clk 0:00:39]} 39. Ne2
{[%clk 0:00:13.2]} 39... hxg3 {[%clk 0:00:36.6]} 40. fxg3 {[%clk 0:00:15.1]}
40... Qa1 {[%clk 0:00:36.3]} 41. Kg2 {[%clk 0:00:15.5]} 41... Qxa3 {[%clk
0:00:34.6]} 42. b5 {[%clk 0:00:16.6]} 42... Qxe3 {[%clk 0:00:35.2]} 43. Qb2
{[%clk 0:00:17]} 43... Qf3+ {[%clk 0:00:35.1]} 44. Kg1 {[%clk 0:00:18.1]} 44...
Bc5+ {[%clk 0:00:34.3]} 45. Kh2 {[%clk 0:00:17.6]} 45... Qf2+ {[%clk 0:00:29.7]}
46. Bg2 {[%clk 0:00:16.4]} 46... e3 {[%clk 0:00:30.7]} 47. Nf4 {[%clk
0:00:16.4]} 47... Qxb2 {[%clk 0:00:30.8]} 0-1

[Event "*** MasterClass Titled Tuesday Blitz"]
[Site "Chess.com"]
[Date "2017.08.01"]
[Round "4"]
[White "Lord_Neezy"]
[Black "Alohamora11"]
[Result "1-0"]
[WhiteElo "2166"]
[BlackElo "2090"]
[TimeControl "180+2"]
[EndTime "13:53:03 PDT"]
[Termination "Lord_Neezy won on time"]

1. e4 {[%clk 0:03:01.9]} 1... c5 {[%clk 0:02:59]} 2. Nc3 {[%clk 0:03:02.6]} 2...
g6 {[%clk 0:02:59.9]} 3. Nge2 {[%clk 0:02:59]} 3... Nc6 {[%clk 0:02:59.3]} 4. d4
{[%clk 0:02:59.2]} 4... cxd4 {[%clk 0:02:56.7]} 5. Nxd4 {[%clk 0:03:01.1]} 5...
Bg7 {[%clk 0:02:57.1]} 6. Be3 {[%clk 0:03:01.8]} 6... Nf6 {[%clk 0:02:58.1]} 7.
Bc4 {[%clk 0:03:01.3]} 7... O-O {[%clk 0:02:57.2]} 8. Bb3 {[%clk 0:03:00.9]}
8... Qa5 {[%clk 0:02:51.6]} 9. O-O {[%clk 0:02:55.3]} 9... d6 {[%clk 0:02:51.2]}
10. h3 {[%clk 0:02:54.7]} 10... Bd7 {[%clk 0:02:49.9]} 11. f4 {[%clk 0:02:39.4]}
11... Nxd4 {[%clk 0:02:50.7]} 12. Bxd4 {[%clk 0:02:41.3]} 12... Bc6 {[%clk
0:02:51.6]} 13. Qd3 {[%clk 0:02:33.2]} 13... Nd7 {[%clk 0:02:47.3]} 14. Bxg7
{[%clk 0:02:32.5]} 14... Kxg7 {[%clk 0:02:49.2]} 15. Nd5 {[%clk 0:02:22.8]}
15... Bxd5 {[%clk 0:02:34.5]} 16. Bxd5 {[%clk 0:02:08.3]} 16... e6 {[%clk
0:02:31.8]} 17. Bb3 {[%clk 0:02:08.9]} 17... Qb6+ {[%clk 0:02:26.9]} 18. Kh2
{[%clk 0:02:00.6]} 18... Nc5 {[%clk 0:02:27.1]} 19. Qd4+ {[%clk 0:02:01.9]}
19... Kg8 {[%clk 0:02:27.3]} 20. Rad1 {[%clk 0:02:03.5]} 20... Rfd8 {[%clk
0:02:15.4]} 21. f5 {[%clk 0:01:57.8]} 21... Nxb3 {[%clk 0:02:15.6]} 22. Qxb6
{[%clk 0:01:58.6]} 22... axb6 {[%clk 0:02:15.7]} 23. axb3 {[%clk 0:02:00.5]}
23... Kg7 {[%clk 0:02:12.1]} 24. Rd2 {[%clk 0:01:57.2]} 24... exf5 {[%clk
0:02:10.6]} 25. exf5 {[%clk 0:01:57.5]} 25... Ra5 {[%clk 0:02:11.2]} 26. f6+
{[%clk 0:01:41.9]} 26... Kf8 {[%clk 0:02:11]} 27. g4 {[%clk 0:01:34.5]} 27... h6
{[%clk 0:02:10.5]} 28. Rfd1 {[%clk 0:01:34.9]} 28... d5 {[%clk 0:02:08]} 29. Kg3
{[%clk 0:01:27.3]} 29... Rd6 {[%clk 0:02:07.6]} 30. c4 {[%clk 0:01:21.8]} 30...
Rxf6 {[%clk 0:02:05.5]} 31. Rxd5 {[%clk 0:01:21]} 31... Ra2 {[%clk 0:02:05.2]}
32. Rd6 {[%clk 0:01:12.6]} 32... Rxd6 {[%clk 0:01:50.6]} 33. Rxd6 {[%clk
0:01:14.5]} 33... b5 {[%clk 0:01:50.7]} 34. Rb6 {[%clk 0:01:10.1]} 34... bxc4
{[%clk 0:01:46.1]} 35. bxc4 {[%clk 0:01:12]} 35... Ra7 {[%clk 0:01:47]} 36. Kf4
{[%clk 0:01:09.5]} 36... Ke7 {[%clk 0:01:47.5]} 37. h4 {[%clk 0:01:06.9]} 37...
Kd7 {[%clk 0:01:46.9]} 38. h5 {[%clk 0:01:08]} 38... gxh5 {[%clk 0:01:44.1]} 39.
gxh5 {[%clk 0:01:08]} 39... Ra4 {[%clk 0:01:31.1]} 40. Rxb7+ {[%clk 0:00:53.8]}
40... Ke6 {[%clk 0:01:30.7]} 41. b3 {[%clk 0:00:55.7]} 41... Ra1 {[%clk
0:01:30.9]} 42. Rb6+ {[%clk 0:00:56.7]} 42... Ke7 {[%clk 0:01:31]} 43. Rxh6
{[%clk 0:00:58.2]} 43... Rf1+ {[%clk 0:01:29.5]} 44. Ke3 {[%clk 0:00:57.6]}
44... Rh1 {[%clk 0:01:29.2]} 45. b4 {[%clk 0:00:57.2]} 45... Rh4 {[%clk
0:01:25.3]} 46. Kd3 {[%clk 0:00:57.4]} 46... f5 {[%clk 0:01:25.9]} 47. b5 {[%clk
0:00:56]} 47... f4 {[%clk 0:01:24.5]} 48. b6 {[%clk 0:00:55.8]} 48... Kd7 {[%clk
0:01:24.7]} 49. c5 {[%clk 0:00:54.9]} 49... f3 {[%clk 0:01:24.8]} 50. c6+ {[%clk
0:00:55]} 50... Kd8 {[%clk 0:01:25.2]} 51. Rh8+ {[%clk 0:00:54.4]} 1-0

[Event "*** MasterClass Titled Tuesday Blitz"]
[Site "Chess.com"]
[Date "2017.08.01"]
[Round "4"]
[White "PelinGorki"]
[Black "SuperBlitz"]
[Result "1/2-1/2"]
[WhiteElo "2416"]
[BlackElo "2313"]
[TimeControl "180+2"]
[EndTime "13:53:05 PDT"]
[Termination "Game drawn by agreement"]

1. e4 {[%clk 0:03:01.9]} 1... d5 {[%clk 0:03:00.7]} 2. exd5 {[%clk 0:03:02.4]}
2... Qxd5 {[%clk 0:03:02.3]} 3. Nc3 {[%clk 0:03:03.9]} 3... Qa5 {[%clk
0:03:03.4]} 4. d4 {[%clk 0:03:05]} 4... Nf6 {[%clk 0:03:04.6]} 5. Nf3 {[%clk
0:03:05.2]} 5... c6 {[%clk 0:03:05.7]} 6. Bc4 {[%clk 0:03:04.9]} 6... Bf5 {[%clk
0:03:06.4]} 7. Bd2 {[%clk 0:03:05.4]} 7... e6 {[%clk 0:03:07.4]} 8. Nd5 {[%clk
0:03:04.8]} 8... Qd8 {[%clk 0:03:08.3]} 9. Nxf6+ {[%clk 0:03:05.1]} 9... Qxf6
{[%clk 0:03:09.9]} 10. Qe2 {[%clk 0:03:07]} 10... Bd6 {[%clk 0:03:09.7]} 11.
O-O-O {[%clk 0:03:06.8]} 11... b5 {[%clk 0:03:10.4]} 12. Bg5 {[%clk 0:02:38.8]}
12... Qg6 {[%clk 0:03:00.8]} 13. Bb3 {[%clk 0:02:35.3]} 13... Bg4 {[%clk
0:02:57.9]} 14. h4 {[%clk 0:02:33.9]} 14... a5 {[%clk 0:02:48.1]} 15. d5 {[%clk
0:02:28.7]} 15... a4 {[%clk 0:01:34.9]} 16. dxe6 {[%clk 0:02:28.4]} 16... axb3
{[%clk 0:01:29.3]} 17. Rxd6 {[%clk 0:02:27]} 17... O-O {[%clk 0:01:11.9]} 18. a3
{[%clk 0:02:16.2]} 18... fxe6 {[%clk 0:00:58.3]} 19. cxb3 {[%clk 0:02:02.4]}
19... Na6 {[%clk 0:00:58.8]} 20. Qd2 {[%clk 0:01:48.8]} 20... Nc5 {[%clk
0:00:38.9]} 21. Qe3 {[%clk 0:01:44.3]} 21... Ne4 {[%clk 0:00:17.7]} 22. Rd4
{[%clk 0:01:37.5]} 22... Bxf3 {[%clk 0:00:16.6]} 23. gxf3 {[%clk 0:01:39.4]}
23... Nxg5 {[%clk 0:00:12.9]} 24. hxg5 {[%clk 0:01:41.3]} 24... Rf5 {[%clk
0:00:08.3]} 25. f4 {[%clk 0:01:41.5]} 25... Raf8 {[%clk 0:00:09]} 26. Re4 {[%clk
0:01:35.7]} 26... e5 {[%clk 0:00:09.8]} 27. Rxe5 {[%clk 0:01:31.8]} 27... Rxf4
{[%clk 0:00:11.3]} 28. Rh2 {[%clk 0:01:29.4]} 28... Rf3 {[%clk 0:00:12.3]} 29.
Qc5 {[%clk 0:01:25.3]} 29... Rd8 {[%clk 0:00:09.5]} 30. Rh1 {[%clk 0:01:10.4]}
30... Rxb3 {[%clk 0:00:09.5]} 31. Rhe1 {[%clk 0:01:06.2]} 31... Rbd3 {[%clk
0:00:10.1]} 32. f4 {[%clk 0:01:03.8]} 32... R3d6 {[%clk 0:00:09.5]} 33. Qe3
{[%clk 0:00:57.6]} 33... Kf8 {[%clk 0:00:06.5]} 34. f5 {[%clk 0:00:58.5]} 34...
Qf7 {[%clk 0:00:07.3]} 35. f6 {[%clk 0:00:55.9]} 35... Qc4+ {[%clk 0:00:08.4]}
36. Qc3 {[%clk 0:00:51.3]} 36... Qxc3+ {[%clk 0:00:09.7]} 37. bxc3 {[%clk
0:00:53.2]} 37... gxf6 {[%clk 0:00:11.4]} 38. Rf5 {[%clk 0:00:54.8]} 38... Kf7
{[%clk 0:00:11.9]} 39. Ref1 {[%clk 0:00:55.9]} 39... Kg6 {[%clk 0:00:09.1]} 40.
gxf6 {[%clk 0:00:55.4]} 40... Kf7 {[%clk 0:00:10.4]} 41. Rh5 {[%clk 0:00:54.6]}
41... Rh8 {[%clk 0:00:08.4]} 42. Rh6 {[%clk 0:00:53.2]} 42... Rdd8 {[%clk
0:00:08.4]} 43. Kc2 {[%clk 0:00:54.4]} 43... Rdg8 {[%clk 0:00:09]} 44. Re1
{[%clk 0:00:51.3]} 44... Rg6 {[%clk 0:00:07.1]} 45. Re7+ {[%clk 0:00:47.4]}
45... Kxf6 {[%clk 0:00:07.8]} 46. Rhxh7 {[%clk 0:00:49]} 46... Rxh7 {[%clk
0:00:08.7]} 47. Rxh7 {[%clk 0:00:50.9]} 47... Ke5 {[%clk 0:00:10]} 48. Kb3
{[%clk 0:00:46.3]} 48... Kd5 {[%clk 0:00:11.3]} 49. Rh5+ {[%clk 0:00:45.5]}
49... Kd6 {[%clk 0:00:12.6]} 50. Kb4 {[%clk 0:00:42.8]} 50... Rg4+ {[%clk
0:00:13.4]} 51. Kb3 {[%clk 0:00:44.3]} 51... Kc7 {[%clk 0:00:14.7]} 1/2-1/2